bitfinex-derivatives/quotes_ETHF0:USTF0_20250213
["timestamp","ask_amount","ask_price","bid_price","bid_amount"]
[1739420280716,1.1351,2742.8,2742.4,6.34522209]
[1739420281119,1.1351,2742.8,2742.5,0.554]
[1739420281822,0.7291,2742.7,2742.5,1.28314]
[1739420282426,0.72912,2742.6,2742.5,0.554]
[1739420284421,1.86419,2742.8,2742.7,0.7291]
[1739420284626,1.86419,2742.8,2742.6,0.72911]
[1739420285124,0.7291,2742.7,2742.6,0.72911]
[1739420285324,0.7291,2742.7,2742.5,1.28313]
[1739420285525,1.1351,2742.8,2742.5,1.28313]
[1739420285727,0.72912,2742.6,2742.5,1.28313]
[1739420285927,1.1351,2742.8,2742.5,0.554]
[1739420286124,1.1351,2742.8,2742.7,0.7291]
[1739420286331,0.00546896,2743.0,2742.9,0.72904]
[1739420291331,0.00546896,2743.0,2742.7,7.91622209]
[1739420291533,0.72906,2742.9,2742.7,7.07431209]
[1739420291725,0.72906,2742.9,2742.7,6.34522209]
[1739420291921,0.00546896,2743.0,2742.7,6.34522209]
[1739420292126,0.73449896,2743.0,2742.8,0.72906]
[1739420292628,0.00546896,2743.0,2742.7,6.34522209]
[1739420292826,0.00546896,2743.0,2742.9,0.72904]
[1739420293436,0.73449896,2743.0,2742.8,0.72906]
[1739420293630,0.00546896,2743.0,2742.7,6.34522209]
[1739420294232,0.73449896,2743.0,2742.8,0.72907]
[1739420294432,0.00546896,2743.0,2742.7,6.34522209]
[1739420294635,0.00546896,2743.0,2742.9,0.72904]
[1739420295227,0.00546896,2743.0,2742.7,6.34522209]
[1739420295428,0.00546896,2743.0,2742.7,7.07431209]
[1739420295628,0.72906,2742.9,2742.7,7.07430209]
[1739420296034,0.00546896,2743.0,2742.9,0.72904]
[1739420299942,0.00546896,2743.0,2742.7,6.34522209]
[1739420300238,0.00546896,2743.0,2742.7,7.91422209]
[1739420300537,0.00546896,2743.0,2742.9,0.72904]
[1739420312639,0.00546896,2743.0,2742.7,7.91422209]
[1739420312640,0.72907,2742.9,2742.7,7.07430209]
[1739420312848,0.565,2742.8,2742.7,7.07432209]
[1739420313146,1.29407,2742.8,2742.7,3.2078]
[1739420313346,0.72915,2742.5,2742.4,3.13742209]
[1739420315452,0.72915,2742.5,2742.4,3.86660209]
[1739420315656,0.72915,2742.5,2742.4,3.13742209]
[1739420318250,0.7292,2742.3,2742.2,3.2078]
[1739420328360,0.72928,2742.0,2741.9,3.2078]
[1739420330062,0.72939,2741.6,2741.5,48.25722209]
[1739420330266,0.72939,2741.6,2741.5,48.98664209]
[1739420330767,0.72939,2741.6,2741.5,6.34522209]
[1739420333766,4.7718,2742.1,2741.3,40.8]
[1739420333963,0.72944,2741.4,2741.3,40.8]
[1739420334754,0.72944,2741.4,2741.2,3.13742209]
[1739420334961,0.72947,2741.3,2741.2,3.13742209]
[1739420335262,0.72952,2741.1,2741.0,41.8889]
[1739420335465,0.72952,2741.1,2741.0,1.0889]
[1739420335660,0.7296,2740.8,2740.7,4.1438]
[1739420335861,0.7296,2740.8,2740.7,0.566]
[1739420336066,0.7296,2740.8,2740.7,41.366]
[1739420336362,0.72959,2740.9,2740.7,41.366]
[1739420336567,0.72959,2740.9,2740.7,42.09561]
[1739420337071,1.1282,2741.1,2740.7,42.09561]
[1739420337262,0.7296,2740.8,2740.7,41.366]
[1739420338266,1.1282,2741.1,2740.7,41.366]
[1739420338461,0.7296,2740.8,2740.7,41.366]
[1739420339168,0.72959,2740.9,2740.7,42.09562]
[1739420339368,0.7296,2740.8,2740.7,41.366]
[1739420339569,1.1282,2741.1,2740.7,41.366]
[1739420340067,1.1282,2741.1,2740.9,3.13742209]
[1739420340261,0.72954,2741.1,2740.9,7.07479209]
[1739420340462,0.72954,2741.1,2741.0,0.5429]
[1739420340662,1.564,2741.2,2741.0,0.5429]
[1739420340863,4.2969,2741.4,2741.0,0.5429]
[1739420341068,4.2969,2741.4,2741.0,1.0928]
[1739420341374,0.72952,2741.1,2741.0,1.0928]
[1739420341568,0.72952,2741.1,2741.0,41.8928]
[1739420342972,6.12055,2741.4,2740.9,3.2078]
[1739420343173,0.7296,2740.8,2740.7,0.566]
[1739420343566,0.72963,2740.7,2740.6,3.13742209]
[1739420343769,0.72965,2740.6,2740.5,3.7507]
[1739420343970,0.72965,2740.6,2740.5,3.2078]
[1739420345072,1.1498,2740.7,2740.3,3.13742209]
[1739420345370,0.72961,2740.8,2740.6,3.86706209]
[1739420345670,0.72963,2740.7,2740.6,4.41066209]
[1739420345873,1.1197,2741.0,2740.6,4.41066209]
[1739420346167,1.1197,2741.0,2740.6,3.68102209]
[1739420346168,0.72958,2740.9,2740.6,3.68102209]
[1739420346469,1.82346,2741.7,2740.6,3.68102209]
[1739420346470,0.72943,2741.5,2740.9,1.82394]
[1739420346768,0.72942,2741.5,2741.3,3.86687209]
[1739420346971,0.72942,2741.5,2741.4,1.1318]
[1739420348878,0.00546896,2741.6,2741.4,4.3396]
[1739420349166,0.00546896,2741.6,2741.4,5.06903]
[1739420349167,0.73486896,2741.6,2741.4,5.06903]
[1739420349370,0.73486896,2741.6,2741.4,4.3396]
[1739420349574,0.00546896,2741.6,2741.5,0.72941]
[1739420350466,0.73485896,2741.6,2741.4,5.06903]
[1739420351076,0.00546896,2741.6,2741.4,4.3396]
[1739420351471,0.73486896,2741.6,2741.4,5.06903]
[1739420351874,0.00546896,2741.6,2741.5,0.72941]
[1739420353880,0.5462,2742.4,2742.3,0.7292]
[1739420354074,5.3168,2742.9,2742.3,3.13742209]
[1739420354270,1.27528,2742.8,2742.5,3.93693]
[1739420354576,0.72912,2742.6,2742.5,3.2078]
[1739420354773,1.27101,2742.7,2742.5,3.2078]
[1739420354970,0.72912,2742.6,2742.5,3.2078]
[1739420355676,0.72912,2742.6,2742.4,1.86437]
[1739420356172,0.72912,2742.6,2742.4,1.1352]
[1739420356369,0.5419,2742.7,2742.4,1.1352]
[1739420356569,1.27101,2742.7,2742.4,1.1352]
[1739420356869,0.5419,2742.7,2742.5,0.72914]
[1739420357069,1.28074896,2742.8,2742.4,1.7191]
[1739420357070,0.00546896,2742.8,2742.4,1.7191]
[1739420357272,0.73454896,2742.8,2742.6,3.13742209]
[1739420357577,0.00546896,2742.8,2742.6,3.86653209]
[1739420357775,0.00546896,2742.8,2742.6,3.13742209]
[1739420357976,0.00546896,2742.8,2742.7,0.7291]
[1739420363681,1.1027,2743.4,2742.6,4.70242209]
[1739420363981,1.83162,2743.4,2743.2,0.72894]
[1739420364181,1.1027,2743.4,2743.3,3.86636209]
[1739420364378,1.83161,2743.4,2743.3,3.13742209]
[1739420364681,1.1027,2743.4,2743.0,3.67182209]
[1739420364883,0.72899,2743.1,2743.0,3.67182209]
[1739420365176,1.1027,2743.4,2743.0,3.67182209]
[1739420365380,0.72899,2743.1,2743.0,3.67182209]
[1739420365877,0.00546896,2743.6,2743.0,3.67182209]
[1739420366081,0.00546896,2743.6,2743.5,3.93668]
[1739420366278,0.00546896,2743.6,2743.5,3.93420607]
[1739420366781,0.00546896,2743.6,2743.5,4.47780607]
[1739420367280,1.1271,2744.3,2744.1,0.72871]
[1739420367484,1.85578,2744.3,2744.1,3.13742209]
[1739420367683,0.7287,2744.2,2744.1,3.13742209]
[1739420367872,1.85579,2744.3,2744.1,3.13742209]
[1739420368272,0.7287,2744.2,2743.9,3.2078]
[1739420368478,0.72875,2744.0,2743.9,3.21326896]
[1739420368676,0.72875,2744.0,2743.9,0.00546896]
[1739420371285,0.7291,2742.7,2742.6,3.2078]
[1739420371585,6.34522209,2743.1,2742.3,3.2078]
[1739420371788,3.39343,2743.2,2742.3,3.2078]
[1739420371789,0.72918,2742.4,2742.3,3.2078]
[1739420372085,2.30113,2742.6,2742.3,3.2078]
[1739420372287,1.572,2742.6,2742.3,3.93698]
[1739420372482,0.72914,2742.6,2742.3,3.2078]
[1739420372885,0.72915,2742.5,2742.3,3.2078]
[1739420373083,0.5668,2742.5,2742.3,3.2078]
[1739420373891,0.5668,2742.5,2742.4,3.13742209]
[1739420374082,0.00546896,2742.7,2742.6,0.72912]
[1739420374289,0.00546896,2742.7,2742.6,3.93692]
[1739420375690,0.00546896,2742.7,2742.6,44.73692]
[1739420376093,0.00546896,2742.7,2742.6,44.0078]
[1739420376281,0.00546896,2742.7,2742.6,3.2078]
[1739420376893,0.00546896,2742.7,2742.6,3.93692]
[1739420378386,0.00546896,2742.7,2742.6,6.93292]
[1739420378895,0.5719,2743.6,2742.6,53.0038]
[1739420379091,0.5719,2743.6,2743.5,3.2078]
[1739420379287,0.571,2743.8,2743.5,3.2078]
[1739420379590,0.72873,2744.1,2743.7,0.72881]
[1739420379787,0.72873,2744.1,2743.9,3.2078]
[1739420380092,1.30517896,2744.2,2743.9,3.2078]
[1739420380393,0.57646896,2744.2,2743.9,3.2078]
[1739420380587,0.72873,2744.1,2743.9,3.2078]
[1739420380794,1.30518896,2744.2,2743.9,3.2078]
[1739420381390,0.72874,2744.1,2743.9,3.2078]
[1739420381791,0.57646896,2744.2,2743.9,3.2078]
[1739420381995,1.30517896,2744.2,2743.9,3.2078]
[1739420382293,0.72873,2744.1,2743.9,3.2078]
[1739420383086,1.30516896,2744.2,2743.9,3.2078]
[1739420383286,0.72873,2744.1,2743.9,3.2078]
[1739420383699,0.57646896,2744.2,2743.9,3.93656]
[1739420384195,1.30516896,2744.2,2743.9,3.93656]
[1739420384596,0.57646896,2744.2,2744.0,0.72874]
[1739420384795,0.57646896,2744.2,2744.1,0.72872]
[1739420385003,0.57646896,2744.2,2744.0,0.72873]
[1739420385298,0.00546896,2744.2,2744.0,3.13742209]
[1739420385598,0.00546896,2744.2,2744.1,0.72872]
[1739420385792,0.00546896,2744.2,2744.1,41.52872]
[1739420386696,0.73416896,2744.2,2744.1,40.8]
[1739420386897,0.00546896,2744.2,2744.1,40.8]
[1739420387099,0.00546896,2744.2,2744.1,41.52872]
[1739420387892,0.00546896,2744.2,2744.1,0.72872]
[1739420388295,0.00546896,2744.2,2744.1,41.52872]
[1739420388799,0.00546896,2744.2,2744.1,0.72872]
[1739420390898,0.00546896,2744.2,2744.0,3.70302209]
[1739420391098,0.00546896,2744.2,2744.1,0.72872]
[1739420393802,0.00546896,2744.2,2744.0,3.70302209]
[1739420394198,0.00546896,2744.2,2744.1,0.72872]
[1739420395506,1.1338,2744.9,2744.8,0.72854]
[1739420395699,1.1338,2744.9,2744.3,3.13742209]
[1739420395901,1.1338,2744.9,2744.3,3.2078]
[1739420395902,1.82142,2744.7,2744.3,3.2078]
[1739420396097,0.72864,2744.4,2744.3,3.2078]
[1739420396307,0.72864,2744.4,2744.3,44.0078]
[1739420396608,0.72864,2744.4,2744.3,3.2078]
[1739420398613,0.73408896,2744.6,2744.4,0.72864]
[1739420398809,0.00546896,2744.6,2744.4,0.72864]
[1739420399011,0.73407896,2744.6,2744.4,0.72864]
[1739420399309,0.00546896,2744.6,2744.3,3.2078]
[1739420399509,0.00546896,2744.6,2744.3,3.93647]
[1739420399712,0.72863,2744.5,2744.3,3.93647]
[1739420400109,0.72864,2744.4,2744.3,3.2078]
[1739420402412,3.14289105,2744.6,2744.3,3.2078]
[1739420402605,0.72863,2744.5,2744.4,0.72863]
[1739420403406,0.72864,2744.4,2744.3,3.93645]
[1739420403810,0.72864,2744.4,2744.3,3.2078]
[1739420404010,0.72864,2744.4,2744.3,3.93647]
[1739420404612,0.72864,2744.4,2744.3,3.2078]
[1739420405002,0.00546896,2744.6,2744.0,40.8]
[1739420405203,0.5473,2744.3,2743.9,3.2078]
[1739420405412,0.72875,2744.0,2743.9,3.2078]
[1739420405716,0.72875,2744.0,2743.9,3.93658]
[1739420406314,0.72875,2744.0,2743.9,3.2078]
[1739420407214,0.7288,2743.8,2743.7,0.00546896]
[1739420411915,0.72899,2743.1,2743.0,3.9368]
[1739420412316,0.72898,2743.2,2743.0,44.0078]
[1739420412614,0.72898,2743.2,2743.1,0.72899]
[1739420412924,3.2078,2743.2,2742.9,0.00546896]
[1739420413121,0.72902,2743.0,2742.9,0.00546896]
[1739420415116,1.26552,2743.0,2742.9,0.00546896]
[1739420420519,7.61074209,2743.0,2742.9,0.00546896]
[1739420420722,8.18324209,2743.0,2742.9,0.00546896]
[1739420429526,4.47332,2743.0,2742.9,0.00546896]
[1739420429731,7.61074209,2743.0,2742.9,0.00546896]
[1739420430234,8.14884209,2743.0,2742.9,0.00546896]
[1739420433033,8.14884209,2743.0,2742.9,0.00226604]
[1739420434238,8.14884209,2743.0,2742.9,6.04e-06]
[1739420434428,14.14884209,2743.0,2742.9,6.04e-06]
[1739420435728,14.65369733,2743.0,2742.9,6.04e-06]
[1739420438535,8.65369733,2743.0,2742.9,6.04e-06]
[1739420439231,8.45272209,2743.0,2742.1,3.7581]
[1739420439435,1.82275,2742.7,2742.1,4.48733]
[1739420440035,1.82261,2742.9,2742.1,3.7581]
[1739420440237,0.72919,2742.4,2742.3,0.7292]
[1739420440932,0.72919,2742.4,2742.3,1.2621]
[1739420441134,0.72919,2742.4,2742.3,0.5329]
[1739420441334,0.72919,2742.4,2742.3,1.2621]
[1739420441535,0.72915,2742.6,2742.4,0.72916]
[1739420441734,5.3153,2743.0,2742.3,0.5329]
[1739420441935,0.72918,2742.4,2742.3,42.0621]
[1739420442136,0.72918,2742.4,2742.3,41.3329]
[1739420442742,0.72918,2742.4,2742.3,42.0621]
[1739420443242,0.72918,2742.4,2742.3,41.3329]
[1739420444443,0.72918,2742.4,2742.3,0.5329]
[1739420445338,5.3153,2743.0,2742.3,0.5329]
[1739420445544,0.72915,2742.5,2742.4,3.93696]
[1739420445846,0.00546896,2743.2,2742.4,3.2078]
[1739420446036,0.72899,2743.1,2743.0,3.2078]
[1739420446236,0.73443896,2743.2,2743.0,5.5907]
[1739420446441,0.00546896,2743.2,2743.1,0.72899]
[1739420446940,0.00546896,2743.2,2743.0,4.8617]
[1739420447136,0.72899,2743.1,2743.0,4.8617]
[1739420447336,0.72915,2742.5,2742.4,4.7808]
[1739420447544,0.72915,2742.5,2742.4,4.8227]
[1739420448938,3.7869,2743.0,2742.4,4.8227]
[1739420449243,0.7291,2742.7,2742.4,4.8227]
[1739420449636,0.72905,2742.9,2742.7,0.72908]
[1739420449844,0.72905,2742.9,2742.7,3.93688]
[1739420450237,0.00546896,2743.2,2742.7,3.2078]
[1739420450633,0.00546896,2743.2,2742.9,0.72903]
[1739420450634,0.72899,2743.1,2742.9,0.72903]
[1739420450839,0.72899,2743.1,2743.0,1.0981]
[1739420451341,0.00546896,2743.2,2742.7,3.2078]
[1739420451542,0.72907,2742.8,2742.7,0.542]
[1739420451941,0.72912,2742.6,2742.5,0.5561]
[1739420455437,1.576,2743.0,2742.5,1.28525]
[1739420455840,0.72912,2742.6,2742.5,0.5561]
[1739420456047,0.72912,2742.6,2742.5,1.28525]
[1739420456343,0.72911,2742.7,2742.6,0.72912]
[1739420456644,0.72909,2742.8,2742.5,0.5561]
[1739420456845,0.72906,2742.9,2742.8,0.72907]
[1739420457140,0.72906,2742.9,2742.7,3.93687]
[1739420457333,0.72906,2742.9,2742.8,0.72907]
[1739420457538,0.72907,2742.8,2742.7,3.2078]
[1739420457737,0.72912,2742.6,2742.5,0.5561]
[1739420459846,0.72912,2742.7,2742.5,1.28523]
[1739420460042,0.72912,2742.7,2742.6,0.72912]
[1739420460243,1.8226,2743.0,2742.5,0.5561]
[1739420460436,0.72912,2742.6,2742.5,0.5561]
[1739420460643,1.8226,2743.0,2742.5,1.28525]
[1739420460952,0.72912,2742.6,2742.5,1.28525]
[1739420461145,0.72912,2742.6,2742.5,0.5561]
[1739420461745,0.72915,2742.5,2742.4,3.7498]
[1739420462149,0.72915,2742.5,2742.4,0.542]
[1739420462647,0.7292,2742.3,2742.2,0.00546896]
[1739420465139,6.34522209,2742.5,2742.2,0.00546896]
[1739420465351,0.7292,2742.3,2742.2,0.00546896]
[1739420467239,1.575,2742.3,2741.4,3.2078]
[1739420467447,0.72941,2741.5,2741.4,3.2078]
[1739420467850,1.575,2741.9,2741.5,0.7294]
[1739420468051,0.72938,2741.7,2741.5,0.7294]
[1739420468248,0.72939,2741.6,2741.5,0.7294]
[1739420468449,1.575,2741.9,2741.4,3.2078]
[1739420468654,0.72941,2741.5,2741.4,3.2078]
[1739420470848,0.7294,2741.6,2741.5,0.72941]
[1739420471154,0.7294,2741.6,2741.4,3.2078]
[1739420471358,0.7294,2741.6,2741.4,3.93722]
[1739420471854,0.7294,2741.6,2741.4,3.2078]
[1739420472054,0.7294,2741.6,2741.4,3.93723]
[1739420472456,0.5438,2741.7,2741.4,3.93723]
[1739420472653,0.72941,2741.5,2741.4,3.93723]
[1739420473758,0.7294,2741.6,2741.5,0.7294]
[1739420473951,0.5438,2741.7,2741.4,3.2078]
[1739420474152,0.72941,2741.5,2741.4,3.2078]
[1739420475445,0.72941,2741.5,2741.4,3.93724]
[1739420475959,0.5862,2741.8,2741.4,3.2078]
[1739420476150,0.72938,2741.7,2741.6,0.72938]
[1739420476560,0.5862,2741.8,2741.4,3.2078]
[1739420476860,0.72936,2741.7,2741.6,0.72937]
[1739420477654,0.72934,2741.8,2741.7,0.72935]
[1739420478055,1.29979896,2741.9,2741.8,0.72934]
[1739420478857,0.57046896,2741.9,2741.4,6.34522209]
[1739420479063,0.72934,2741.8,2741.7,0.72934]
[1739420480163,0.73478896,2741.9,2741.8,0.72934]
[1739420480358,0.00546896,2741.9,2741.8,3.93714]
[1739420481158,0.00546896,2741.9,2741.8,5.64524]
[1739420481358,0.5649,2742.4,2742.3,0.7292]
[1739420481563,0.5654,2742.6,2742.1,3.2078]
[1739420481763,0.5649,2742.5,2742.1,3.93704]
[1739420481965,0.72921,2742.3,2742.1,3.93704]
[1739420482362,0.5649,2742.5,2742.1,3.2078]
[1739420482562,1.29952896,2742.5,2742.3,0.72918]
[1739420482966,0.00546896,2742.5,2742.4,3.93698]
[1739420483358,3.9368,2743.1,2742.4,9.2078]
[1739420483561,3.9368,2743.1,2742.9,0.72904]
[1739420483772,0.729,2743.1,2742.9,0.72904]
[1739420483966,0.729,2743.1,2742.7,6.34522209]
[1739420483967,1.6633,2743.3,2742.7,6.34522209]
[1739420484171,1.1198,2743.3,2743.1,3.2078]
[1739420484469,1.1198,2743.3,2743.0,0.72901]
[1739420484664,1.1198,2743.3,2742.9,0.00546896]
[1739420484860,0.5544,2743.3,2743.2,0.72896]
[1739420485170,0.00546896,2743.5,2743.2,3.2078]
[1739420485365,0.00546896,2743.5,2743.3,0.72891]
[1739420485569,0.00546896,2743.5,2743.4,0.72891]
[1739420486174,2.995,2744.3,2743.4,1.574]
[1739420486369,1.29401,2744.2,2743.9,3.2078]
[1739420486569,0.5653,2744.2,2743.9,3.2078]
[1739420486765,0.5813,2744.4,2744.0,0.72874]
[1739420486967,0.72868,2744.3,2744.0,0.72874]
[1739420487172,0.72868,2744.3,2743.9,6.34522209]
[1739420487566,0.72868,2744.3,2743.9,7.07398209]
[1739420487771,0.72872,2744.2,2743.9,3.2078]
[1739420488174,0.72872,2744.1,2743.9,3.2078]
[1739420488567,0.58676896,2744.4,2743.9,3.2078]
[1739420489076,0.72874,2744.1,2743.9,3.2078]
[1739420489270,0.58676896,2744.4,2743.9,3.2078]
[1739420489467,0.72869,2744.3,2743.9,3.93657]
[1739420489665,0.7287,2744.2,2743.9,3.93657]
[1739420489872,0.72873,2744.1,2743.9,3.2078]
[1739420490064,0.72875,2744.0,2743.9,3.2078]
[1739420490773,0.58676896,2744.4,2743.9,3.2078]
[1739420490973,0.72875,2744.0,2743.9,3.2078]
[1739420491870,0.72874,2744.1,2743.9,3.2078]
[1739420492579,0.58676896,2744.4,2743.9,3.2078]
[1739420492778,0.72875,2744.0,2743.9,3.2078]
[1739420494479,0.58676896,2744.4,2743.9,3.2078]
[1739420494781,0.72875,2744.0,2743.9,3.2078]
[1739420496681,3.2078,2744.3,2743.6,6.34522209]
[1739420496975,0.72883,2743.7,2743.6,3.2078]
[1739420497175,0.5535,2743.9,2743.3,4.51862]
[1739420497377,0.7289,2743.5,2743.3,3.7897]
[1739420497576,0.72887,2743.6,2743.4,0.72891]
[1739420498086,0.72888,2743.5,2743.4,0.72891]
[1739420498287,0.72887,2743.6,2743.4,0.72891]
[1739420498487,0.72884,2743.7,2743.3,3.2078]
[1739420498789,1.29042,2743.8,2743.3,6.34522209]
[1739420498981,0.5616,2743.8,2743.7,0.72883]
[1739420499286,0.5535,2743.9,2743.6,3.2078]
[1739420499488,0.72883,2743.7,2743.6,3.2078]
[1739420499683,0.5535,2743.9,2743.6,3.2078]
[1739420499885,0.72881,2743.8,2743.6,3.93663]
[1739420500183,0.72883,2743.7,2743.6,3.2078]
[1739420500581,0.72891,2743.5,2743.3,0.72893]
[1739420500782,0.72894,2743.3,2743.2,3.2078]
[1739420501378,3.7861,2743.6,2742.9,0.00546896]
[1739420501582,0.5375,2743.2,2742.9,0.00546896]
[1739420501787,0.729,2743.1,2742.9,0.73449896]
[1739420502286,0.72902,2743.0,2742.9,0.00546896]
[1739420512192,0.72902,2743.0,2742.9,0.00226629]
[1739420516496,1.29472,2743.0,2742.9,0.00226629]
[1739420516698,1.83792,2743.0,2742.9,0.00226629]
[1739420517092,1.1089,2743.0,2742.5,3.2078]
[1739420517284,0.72912,2742.6,2742.5,3.2078]
[1739420518995,0.72911,2742.7,2742.6,0.72912]
[1739420521295,0.72912,2742.6,2742.5,3.2078]
[1739420522494,0.72918,2742.4,2742.3,0.59286896]
[1739420522698,0.72918,2742.4,2742.3,0.00546896]
[1739420523195,1.30168,2742.4,2742.3,0.00546896]
[1739420527198,1.86778,2742.4,2742.3,0.00546896]
[1739420528504,1.30168,2742.4,2742.3,0.00546896]
[1739420534906,4.57246896,2742.8,2742.4,0.72916]
[1739420535101,0.72914,2742.6,2742.5,0.5867]
[1739420535605,0.72915,2742.5,2742.4,0.5573]
[1739420538301,1.57746896,2742.8,2742.4,0.5573]
[1739420538500,0.72915,2742.5,2742.4,1.28646]
[1739420538704,0.72915,2742.5,2742.4,0.5573]
[1739420539914,0.72918,2742.4,2742.3,0.00546896]
[1739420551221,0.72918,2742.4,2742.3,0.00226589]
[1739420552619,2.29618,2742.4,2742.3,0.00226589]
[1739420552819,2.29618,2742.4,2741.6,3.2078]
[1739420552820,0.72936,2741.7,2741.6,4.3482]
[1739420554223,0.72936,2741.7,2741.6,5.07759]
[1739420557128,1.569,2742.0,2741.6,5.07759]
[1739420557428,0.72935,2741.8,2741.7,0.72936]
[1739420557623,1.569,2742.0,2741.6,5.07757]
[1739420558131,1.569,2742.0,2741.6,4.3482]
[1739420558422,1.82308,2742.2,2741.6,4.3482]
[1739420558626,0.72926,2742.1,2742.0,3.2078]
[1739420559123,0.72934,2741.8,2741.7,4.50205]
[1739420559322,0.72932,2741.9,2741.8,0.72933]
[1739420559518,4.0831,2742.3,2741.7,3.7727]
[1739420559828,0.72933,2741.9,2741.8,0.72932]
[1739420560030,0.72934,2741.8,2741.7,3.7727]
[1739420561028,0.72934,2741.8,2741.7,4.50206]
[1739420562230,0.72932,2741.9,2741.8,0.72931]
[1739420562433,0.72934,2741.8,2741.7,3.7727]
[1739420562626,0.72934,2741.8,2741.7,4.50206]
[1739420562831,0.72934,2741.8,2741.7,3.7727]
[1739420563234,0.72934,2741.8,2741.7,4.50206]
[1739420563438,0.72934,2741.8,2741.7,3.7727]
[1739420566333,1.82308,2742.2,2741.7,3.7727]
[1739420566527,0.72932,2741.9,2741.8,0.72933]
[1739420567332,0.72931,2742.0,2741.9,0.7293]
[1739420568533,0.72933,2741.9,2741.8,0.72933]
[1739420569735,2.91115,2742.3,2741.7,3.7727]
[1739420570034,0.72934,2741.8,2741.7,4.50205]
[1739420570533,1.0881,2742.3,2741.7,3.7727]
[1739420570925,0.72934,2741.8,2741.7,3.7727]
[1739420572132,0.72934,2741.8,2741.7,4.50206]
[1739420572322,0.72932,2741.9,2741.8,0.72933]
[1739420572530,0.7293,2742.0,2741.9,0.7293]
[1739420572729,0.72932,2741.9,2741.8,0.72932]
[1739420575934,1.0881,2742.3,2741.7,3.7727]
[1739420576138,0.72929,2742.0,2741.9,0.72929]
[1739420578131,0.72931,2741.9,2741.8,0.72932]
[1739420579538,0.7293,2742.0,2741.9,0.7293]
[1739420579940,1.28361,2742.3,2742.2,0.72923]
[1739420580139,1.28361,2742.3,2742.2,3.2078]
[1739420580440,0.5544,2742.3,2741.9,3.2078]
[1739420580735,0.72928,2742.0,2741.9,3.93709]
[1739420580933,0.72928,2742.0,2741.9,3.2078]
[1739420581332,0.72927,2742.1,2741.9,3.2078]
[1739420581532,0.5544,2742.3,2741.9,3.2078]
[1739420581835,1.28362,2742.3,2742.2,0.72923]
[1739420582038,0.5544,2742.3,2742.0,0.5445]
[1739420582240,0.72923,2742.2,2742.1,0.5441]
[1739420583340,0.72923,2742.2,2742.1,1.27336]
[1739420584041,0.5544,2742.3,2742.0,0.5445]
[1739420584344,0.72926,2742.1,2742.0,0.5445]
[1739420584728,0.582,2742.2,2741.9,3.2078]
[1739420584937,0.72928,2742.0,2741.9,3.2078]
[1739420587043,0.72928,2742.0,2741.9,3.93711]
[1739420587337,0.582,2742.2,2741.9,3.93708]
[1739420587539,0.72928,2742.0,2741.9,3.93708]
[1739420587731,0.72928,2742.0,2741.9,3.2078]
[1739420588533,0.72936,2741.7,2741.6,3.2078]
[1739420589345,1.0826,2741.9,2741.4,0.00546896]
[1739420589546,0.72941,2741.5,2741.4,0.00546896]
[1739420590048,0.72941,2741.5,2741.4,0.73490896]
[1739420590238,0.72941,2741.6,2741.4,0.00546896]
[1739420590440,0.72941,2741.6,2741.4,0.73488896]
[1739420590747,0.72941,2741.5,2741.4,0.00546896]
[1739420591939,1.0826,2741.9,2741.4,0.73490896]
[1739420592337,0.72941,2741.5,2741.4,0.73490896]
[1739420592846,0.72941,2741.5,2741.4,0.00546896]
[1739420600348,0.72962,2740.8,2740.6,3.72564]
[1739420600544,0.72965,2740.7,2740.6,0.72965]
[1739420600746,3.2078,2741.2,2740.7,0.72961]
[1739420600947,0.47295942,2741.1,2740.8,0.7296]
[1739420601353,0.5565,2741.0,2740.8,0.7296]
[1739420601547,1.28607,2741.0,2740.8,0.7296]
[1739420601748,0.5565,2741.0,2740.7,0.00546896]
[1739420602057,0.72959,2740.9,2740.7,0.73507896]
[1739420602253,0.5565,2741.0,2740.7,0.00546896]
[1739420602453,0.5528,2740.8,2740.7,0.00546896]
[1739420602652,0.7296,2740.8,2740.7,0.73507896]
[1739420603254,0.72958,2740.9,2740.7,0.00546896]
[1739420603553,0.5565,2741.0,2740.7,0.00546896]
[1739420603756,0.5565,2741.0,2740.9,0.72957]
[1739420604054,1.28605,2741.0,2740.9,0.72957]
[1739420604258,0.72957,2740.9,2740.8,3.763]
[1739420604652,0.72957,2740.9,2740.8,3.2078]
[1739420605149,1.27887,2740.9,2740.8,3.2078]
[1739420605456,0.5493,2740.9,2740.8,3.9374]
[1739420605855,0.5565,2741.0,2740.9,0.72957]
[1739420606063,0.00546896,2741.2,2741.1,0.72952]
[1739420606250,0.00546896,2741.2,2741.1,3.93732]
[1739420606451,0.73497896,2741.2,2741.0,2.42284]
[1739420606760,0.00546896,2741.2,2741.1,41.52952]
[1739420607062,0.00546896,2741.2,2741.0,1.1367]
[1739420607252,0.00546896,2741.2,2740.8,3.93739]
[1739420607449,0.00546896,2741.2,2740.9,40.8]
[1739420607855,0.72955,2741.0,2740.9,0.72956]
[1739420608257,0.00546896,2741.2,2740.9,0.72956]
[1739420608553,0.00546896,2741.2,2740.8,3.2078]
[1739420608758,0.72957,2740.9,2740.8,3.2078]
[1739420611461,0.7296,2740.8,2740.7,0.00546896]
[1739420611755,3.86702209,2740.8,2740.7,0.00546896]
[1739420612356,0.7296,2740.8,2740.7,0.00546896]
[1739420618561,0.7296,2740.8,2740.7,0.58736896]
[1739420618962,1.20152667,2740.9,2740.7,1.31696896]
[1739420619162,0.72959,2740.9,2740.7,1.31696896]
[1739420619463,0.7296,2740.8,2740.7,0.58736896]
[1739420619654,1.1426,2741.0,2740.7,0.58736896]
[1739420619855,0.72959,2740.9,2740.7,1.31697896]
[1739420620251,0.72959,2740.9,2740.7,4.52477896]
[1739420621163,0.72958,2740.9,2740.8,0.72959]